{"text_format":"3","workbook":"xlsx","n_sheets":1,"sheets":["Project Timeline"],"read":"whole","date_system":"1900"}

{"sheet":"Project Timeline","index":0,"n_rows":52,"n_cols":8,"rows_kept":52,"merged":[[0,0,0,7],[1,0,1,7],[51,0,51,7]]}
["SHC Project Timeline Sheet"]
["Plan your project milestones, assign responsibilities, and track progress from idea to impact."]
[]
["Task / Milestone","Phase","Start Date","Due Date","Duration (Days)","Owner","Status","Notes"]
["Define the problem and project goal","Planning",null,null,{"$f":"IF(OR(C5=\"\",D5=\"\"),\"\",D5-C5+1)","v":""},null,"Not Started"]
["Identify team members / partners","Planning",null,null,"",null,"Not Started"]
["Create project plan and timeline","Planning",null,null,"",null,"Not Started"]
["Gather resources / permissions","Preparation",null,null,"",null,"Not Started"]
["Launch project","Launch",null,null,"",null,"Not Started"]
["Track participation / results","Implementation",null,null,"",null,"Not Started"]
["Document impact","Reflection",null,null,"",null,"Not Started"]
["Share story / next steps","Reflection",null,null,"",null,"Not Started"]
[{"$nulls":4},""]
[{"$nulls":4},""]
[{"$nulls":4},""]
[{"$nulls":4},""]
[{"$nulls":4},""]
[{"$nulls":4},""]
[{"$nulls":4},""]
[{"$nulls":4},""]
[{"$nulls":4},""]
[{"$nulls":4},""]
[{"$nulls":4},""]
[{"$nulls":4},""]
[{"$nulls":4},""]
[{"$nulls":4},""]
[{"$nulls":4},""]
[{"$nulls":4},""]
[{"$nulls":4},""]
[{"$nulls":4},""]
[{"$nulls":4},""]
[{"$nulls":4},""]
[{"$nulls":4},""]
[{"$nulls":4},""]
[{"$nulls":4},""]
[{"$nulls":4},""]
[{"$nulls":4},""]
[{"$nulls":4},""]
[{"$nulls":4},""]
[{"$nulls":4},""]
[{"$nulls":4},""]
[{"$nulls":4},""]
[{"$nulls":4},""]
[{"$nulls":4},""]
[{"$nulls":4},""]
[{"$nulls":4},""]
[{"$nulls":4},""]
[{"$nulls":4},""]
[{"$nulls":4},""]
[{"$nulls":4},""]
[]
["Small Hands Count • Student Project Toolkit"]